fUST/lending_fUST_20240721
["ID","MTS","AMOUNT","RATE_DAILY","PERIOD"]
[332830779,1721560252884,-500.0,0.00013972,2]
[332830780,1721560252894,-500.0,0.00013972,2]
[332830781,1721560252904,-500.0,0.00013972,2]
[332830782,1721560252915,-500.0,0.00013972,2]
[332830783,1721560252926,-569.73,0.00013972,2]
[332830784,1721560252938,-1311.77,0.00013972,2]
[332830785,1721560252949,-500.0,0.00013972,2]
[332830786,1721560252958,-500.0,0.00013972,2]
[332830787,1721560252970,-500.0,0.00013972,2]
[332830788,1721560252980,-151.0,0.00013972,2]
[332830789,1721560252991,-160.319067,0.00013972,2]
[332830790,1721560253000,-500.0,0.00013972,2]
[332830791,1721560253009,-500.0,0.00013972,2]
[332830792,1721560253019,-616.35700912,0.00013972,2]
[332830793,1721560253029,-509.35003568,0.00013972,2]
[332830794,1721560253039,-500.0,0.00013972,2]
[332830795,1721560253049,-500.0,0.00013972,2]
[332830796,1721560253059,-151.0,0.00013972,2]
[332830797,1721560253071,-500.0,0.00013972,2]
[332830798,1721560253080,-507.73783479,0.00013972,2]
[332830799,1721560253090,-500.0,0.00013972,2]
[332830800,1721560253100,-500.0,0.00013972,2]
[332830801,1721560253109,-500.0,0.00013972,2]
[332830802,1721560253119,-1707.62,0.00013972,2]
[332830803,1721560253129,-500.0,0.00013972,2]
[332830804,1721560253139,-506.75001653,0.00013972,2]
[332830805,1721560253149,-500.0,0.00013972,2]
[332830806,1721560253158,-500.0,0.00013972,2]
[332830807,1721560253168,-506.59,0.00013972,2]
[332830808,1721560253178,-500.0,0.00013972,2]
[332830809,1721560253190,-502.51666468,0.00013972,2]
[332830810,1721560253200,-1537.79,0.00013972,2]
[332830811,1721560253211,-500.0,0.00013972,2]
[332830812,1721560253223,-680.36,0.00013972,2]
[332830813,1721560253233,-151.0,0.00013972,2]
[332830814,1721560253244,-1873.04,0.00013972,2]
[332830815,1721560253255,-151.0,0.00013972,2]
[332830816,1721560253266,-151.0,0.00013972,2]
[332830817,1721560253276,-151.0,0.00013972,2]
[332830818,1721560253286,-500.0,0.00013972,2]
[332830819,1721560253296,-500.0,0.00013972,2]
[332830820,1721560253310,-151.0,0.00013972,2]
[332830821,1721560253319,-151.0,0.00013972,2]
[332830822,1721560253328,-255.5,0.00013972,2]
[332830823,1721560253338,-500.0,0.00013972,2]
[332830824,1721560253351,-957.51,0.00013972,2]
[332830825,1721560253360,-500.0,0.00013972,2]
[332830826,1721560253370,-500.0,0.00013972,2]
[332830827,1721560253381,-533.20903313,0.00013972,2]
[332830828,1721560253392,-500.0,0.00013972,2]
[332830829,1721560253403,-500.0,0.00013972,2]
[332830830,1721560253413,-500.0,0.00013972,2]
[332830831,1721560253423,-853.97,0.00013972,2]
[332830832,1721560253432,-500.0,0.00013972,2]
[332830833,1721560253442,-500.0,0.00013972,2]
[332830834,1721560253452,-500.0,0.00013972,2]
[332830835,1721560253461,-605.07,0.00013972,2]
[332830836,1721560253471,-481.67309,0.00013972,2]
[332830837,1721560253480,-481.67309,0.00013972,2]
[332830838,1721560253490,-1055.19,0.00013972,2]
[332830839,1721560253500,-481.67309,0.00013972,2]
[332830840,1721560253509,-481.67309,0.00013972,2]
[332830841,1721560253518,-500.0,0.00013972,2]
[332830842,1721560253528,-1433.44,0.00013972,2]
[332830843,1721560253537,-481.67309,0.00013972,2]
[332830844,1721560253547,-481.67309,0.00013972,2]
[332830845,1721560253557,-481.67309,0.00013972,2]
[332830846,1721560253566,-481.67309,0.00013972,2]
[332830847,1721560253577,-417.01099028,0.00013972,2]
[332830848,1721560253587,-519.64132489,0.00013972,2]
[332830849,1721560253597,-500.0,0.00013972,2]
[332830850,1721560253608,-500.0,0.00013972,2]
[332830851,1721560253618,-1820.86,0.00013972,2]
[332830852,1721560253628,-500.0,0.00013972,2]
[332830853,1721560253639,-500.0,0.00013972,2]
[332830854,1721560253651,-863.39,0.00013972,2]
[332830855,1721560253661,-500.0,0.00013972,2]
[332830856,1721560253671,-500.0,0.00013972,2]
[332830857,1721560253681,-4686.45,0.00013972,2]
[332830858,1721560253695,-780.1,0.00013972,2]
[332830859,1721560253705,-500.0,0.00013972,2]
[332830860,1721560253714,-271.80768515,0.00013972,2]
[332830861,1721560253723,-1856.778109,0.00013972,2]
[332830862,1721560253733,-1856.778109,0.00013972,2]
[332830863,1721560253744,-1856.778109,0.00013972,2]
[332830864,1721560253755,-1856.778109,0.00013972,2]
[332830865,1721560253765,-1579.87,0.00013972,2]
[332830866,1721560253774,-500.0,0.00013972,2]
[332830867,1721560253784,-1856.778109,0.00013972,2]
[332830868,1721560253793,-1856.778109,0.00013972,2]
[332830869,1721560253803,-1856.778109,0.00013972,2]
[332830870,1721560253813,-1856.778109,0.00013972,2]
[332830871,1721560253823,-500.0,0.00013972,2]
[332830872,1721560253832,-2134.01,0.00013972,2]
[332830873,1721560253842,-500.0,0.00013972,2]
[332830874,1721560253851,-500.0,0.00013972,2]
[332830875,1721560253861,-500.0,0.00013972,2]
[332830876,1721560253870,-500.0,0.00013972,2]
[332830877,1721560253880,-515.94344995,0.00013972,2]
[332830878,1721560253889,-500.0,0.00013972,2]
[332830879,1721560253900,-500.0,0.00013972,2]
[332830880,1721560253910,-528.81,0.00013972,2]
[332830881,1721560253919,-500.0,0.00013972,2]
[332830882,1721560253929,-1586.94,0.00013972,2]
[332830883,1721560253939,-3174.2,0.00013972,2]
[332830884,1721560253950,-1108.07,0.00013972,2]
[332830885,1721560253959,-1947.76,0.00013972,2]
[332830886,1721560253969,-553.36,0.00013972,2]
[332830887,1721560253979,-575.17592722,0.00013972,2]
[332830888,1721560253989,-500.0,0.00013972,2]
[332830889,1721560253998,-500.0,0.00013972,2]
[332830890,1721560254008,-500.0,0.00013972,2]
[332830891,1721560254018,-1005.72,0.00013972,2]
[332830892,1721560254028,-500.0,0.00013972,2]
[332830893,1721560254038,-502.22351897,0.00013972,2]
[332830894,1721560254048,-1416.2,0.00013972,2]
[332830895,1721560254058,-500.0,0.00013972,2]
[332830896,1721560254068,-500.0,0.00013972,2]
[332830897,1721560254078,-500.0,0.00013972,2]
[332830898,1721560254087,-704.05,0.00013972,2]
[332830899,1721560254097,-500.0,0.00013972,2]
[332830900,1721560254106,-500.0,0.00013972,2]
[332830901,1721560254116,-506.01830379,0.00013972,2]
[332830902,1721560254125,-500.0,0.00013972,2]
[332830903,1721560254135,-500.0,0.00013972,2]
[332830904,1721560254146,-500.0,0.00013972,2]
[332830905,1721560254155,-788.22,0.00013972,2]
[332830906,1721560254165,-500.0,0.00013972,2]
[332830907,1721560254174,-860.64,0.00013972,2]
[332830908,1721560254184,-500.0,0.00013972,2]
[332830909,1721560254194,-5791.62,0.00013972,2]
[332830910,1721560254204,-507.82940407,0.00013972,2]
[332830911,1721560254213,-539.70731059,0.00013972,2]
[332830912,1721560254223,-526.81,0.00013972,2]
[332830913,1721560254234,-291.6212287,0.00013972,2]
[332830914,1721560254246,-500.0,0.00013972,2]
[332830915,1721560254256,-500.0,0.00013972,2]
[332830916,1721560254267,-500.0,0.00013972,2]
[332830917,1721560254277,-544.42,0.00013972,2]
[332830918,1721560254286,-601.17,0.00013972,2]
[332830919,1721560254296,-1990.1,0.00013972,2]
[332830920,1721560254309,-500.0,0.00013972,2]
[332830921,1721560254318,-500.0,0.00013972,2]
[332830922,1721560254328,-500.0,0.00013972,2]
[332830923,1721560254337,-500.0,0.00013972,2]
[332830924,1721560254348,-2181.36,0.00013972,2]
[332830925,1721560254358,-4191.02,0.00013972,2]
[332830926,1721560254367,-500.0,0.00013972,2]
[332830927,1721560254378,-500.0,0.00013972,2]
[332830928,1721560254388,-500.0,0.00013972,2]
[332830929,1721560254400,-500.0,0.00013972,2]
[332830930,1721560254409,-500.0,0.00013972,2]
[332830931,1721560254422,-796.75,0.00013972,2]
[332830932,1721560254431,-505.69005528,0.00013972,2]
[332830933,1721560254440,-500.0,0.00013972,2]
[332830934,1721560254450,-501.54732919,0.00013972,2]
[332830935,1721560254460,-500.0,0.00013972,2]
[332830936,1721560254470,-5632.17,0.00013972,2]
[332830937,1721560254480,-786.92,0.00013972,2]
[332830938,1721560254490,-744.64,0.00013972,2]
[332830939,1721560254499,-13504.03,0.00013972,2]
[332830940,1721560254509,-500.0,0.00013972,2]
[332830941,1721560254519,-500.0,0.00013972,2]
[332830942,1721560254529,-527.08,0.00013972,2]
[332830943,1721560254538,-375.83567183,0.00013972,2]
[332830944,1721560254548,-1215.41,0.00013972,2]
[332830945,1721560254557,-500.0,0.00013972,2]
[332830946,1721560254566,-500.0,0.00013972,2]
[332830947,1721560254576,-500.0,0.00013972,2]
[332830948,1721560254585,-812.1,0.00013972,2]
[332830949,1721560254594,-500.0,0.00013972,2]
[332830950,1721560254603,-500.0,0.00013972,2]
[332830951,1721560254613,-971.24,0.00013972,2]
[332830952,1721560254622,-2297.87,0.00013972,2]
[332830953,1721560254632,-500.0,0.00013972,2]
[332830954,1721560254641,-811.58,0.00013972,2]
[332830955,1721560254652,-500.0,0.00013972,2]
[332830956,1721560254662,-2505.290293,0.00013972,2]
[332830957,1721560254671,-2505.290293,0.00013972,2]
[332830958,1721560254680,-2505.290293,0.00013972,2]
[332830959,1721560254690,-2505.290293,0.00013972,2]
[332830960,1721560254699,-500.0,0.00013972,2]
[332830961,1721560254708,-2505.290293,0.00013972,2]
[332830962,1721560254717,-2505.290293,0.00013972,2]
[332830963,1721560254726,-500.0,0.00013972,2]
[332830964,1721560254912,-2505.290293,0.00013972,2]
[332830965,1721560254923,-2505.290293,0.00013972,2]
[332830966,1721560254933,-500.0,0.00013972,2]
[332830967,1721560254942,-8671.71,0.00013972,2]
[332830968,1721560254952,-579.61,0.00013972,2]
[332830969,1721560254962,-1436.68,0.00013972,2]
[332830970,1721560254972,-183.89353212,0.00013972,2]
[332830971,1721560254981,-500.0,0.00013972,2]
[332830972,1721560254991,-1253.67,0.00013972,2]
[332830973,1721560255000,-500.0,0.00013972,2]
[332830974,1721560255010,-500.0,0.00013972,2]
[332830975,1721560255019,-2397.49,0.00013972,2]
[332830976,1721560255030,-500.0,0.00013972,2]
[332830977,1721560255039,-519.82751085,0.00013972,2]
[332830978,1721560255049,-500.0,0.00013972,2]
[332830979,1721560255059,-2523.75,0.00013972,2]
[332830980,1721560255069,-2424.11,0.00013972,2]
[332830981,1721560255078,-1578.63,0.00013972,2]
[332830982,1721560255087,-500.0,0.00013972,2]
[332830983,1721560255097,-500.0,0.00013972,2]
[332830984,1721560255106,-688.0,0.00013972,2]
[332830985,1721560255115,-500.0,0.00013972,2]
[332830986,1721560255125,-506.01164318,0.00013972,2]
[332830987,1721560255136,-1049.63,0.00013972,2]
[332830988,1721560255149,-500.0,0.00013972,2]
[332830989,1721560255163,-500.0,0.00013972,2]
[332830990,1721560255172,-500.0,0.00013972,2]
[332830991,1721560255181,-966.46,0.00013972,2]
[332830992,1721560255190,-970.62,0.00013972,2]
[332830993,1721560255200,-500.0,0.00013972,2]
[332830994,1721560255209,-500.0,0.00013972,2]
[332830995,1721560255218,-500.0,0.00013972,2]
[332830996,1721560255227,-994.65,0.00013972,2]
[332830997,1721560255237,-500.0,0.00013972,2]
[332830998,1721560255247,-500.0,0.00013972,2]
[332830999,1721560255256,-42.58479869,0.00013972,2]
[332831000,1721560603501,4818.87,0.000225,30]
[332831005,1721561037743,201.0,0.00025,120]
[332831012,1721561242138,-191.37744587,9.702e-05,2]
[332831013,1721561242159,-191.37744587,9.8e-05,2]
[332831014,1721561242180,-155.70429949,9.999e-05,2]
[332831015,1721561242201,-154.77557542,9.999e-05,2]
[332831016,1721561242223,-300.0,0.00010222,2]
[332831017,1721561242246,-300.0,0.00010222,2]
[332831018,1721561242269,-2706.76523335,0.00010223,2]
[332831082,1721561438300,-524.821297,9.619e-05,2]
[332831083,1721561438310,-524.821297,9.716e-05,2]
[332831084,1721561438319,-300.0,0.00010222,2]
[332831085,1721561438328,-4707.01308214,0.00010223,2]
[332831086,1721561438338,-3781.31705909,0.00010223,2]
[332831087,1721561438348,-19434.15346196,0.00010223,2]
[332831088,1721561438359,-164.49158165,0.00010223,2]
[332831089,1721561438371,-1625.30319851,0.00010223,2]
[332831090,1721561438381,-2105.76943121,0.00010223,2]
[332831091,1721561438390,-155.25511355,0.00010223,2]
[332831092,1721561438400,-218.09499306,0.00010223,2]
[332831093,1721561438410,-22193.23476665,0.00010223,2]
[332831094,1721561438419,-250.0,0.00011118,2]
[332831095,1721561438428,-250.0,0.00011149,2]
[332831096,1721561438437,-250.0,0.00011179,2]
[332831097,1721561438447,-250.0,0.0001121,2]
[332831098,1721561438457,-250.0,0.0001124,2]
[332831099,1721561438468,-420.0,0.00011244,2]
[332831100,1721561438477,-250.0,0.00011271,2]
[332831101,1721561438487,-250.0,0.00011301,2]
[332831102,1721561438496,-250.0,0.00011332,2]
[332831103,1721561438505,-250.0,0.00011362,2]
[332831104,1721561438515,-250.0,0.00011393,2]
[332831105,1721561438525,-250.0,0.00011423,2]
[332831106,1721561438535,-250.0,0.00011454,2]
[332831107,1721561438544,-250.0,0.00011484,2]
[332831108,1721561438553,-250.0,0.00011515,2]
[332831109,1721561438562,-250.0,0.00011545,2]
[332831110,1721561438572,-250.0,0.00011576,2]
[332831111,1721561438581,-250.0,0.00011606,2]
[332831112,1721561438591,-250.0,0.00011637,2]
[332831113,1721561438600,-250.0,0.00011667,2]
[332831114,1721561438610,-250.0,0.00011698,2]
[332831115,1721561438622,-287.0,0.00012369,2]
[332831116,1721561438632,-941.49835413,0.00012391,2]
[332831117,1721561438642,-1378.71492286,0.000129,2]
[332831118,1721561438655,-1378.71492284,0.000129,2]
[332831119,1721561438665,-1378.71492284,0.00013354,2]
[332831120,1721561438676,-154.6256643,0.00013425,2]
[332831121,1721561438686,-587.6063692,0.00013425,2]
[332831122,1721561438695,-153.0,0.00013425,2]
[332831123,1721561438705,-270.6051927,0.00013561,2]
[332831124,1721561438715,-462.86221271,0.00013598,2]
[332831125,1721561438724,-942.05798298,0.00013598,2]
[332831126,1721561438736,-462.86221267,0.00013667,2]
[332831127,1721561438746,-323578.912621,0.00013688,2]
[332831128,1721561438755,-500.0,0.00013698,2]
[332831129,1721561438765,-500.0,0.00013698,2]
[332831130,1721561438774,-656.0,0.00013698,2]
[332831131,1721561438783,-500.0,0.00013698,2]
[332831132,1721561438792,-500.0,0.00013698,2]
[332831133,1721561438802,-1103.7447891,0.00013698,2]
[332831134,1721561438812,-370.66274524,0.00013698,2]
[332831135,1721561438821,-500.0,0.00013698,2]
[332831136,1721561438831,-1103.7447891,0.00013698,2]
[332831137,1721561438840,-500.0,0.00013698,2]
[332831138,1721561438850,-1103.7447891,0.00013698,2]
[332831139,1721561438859,-500.0,0.00013698,2]
[332831140,1721561438869,-500.0,0.00013698,2]
[332831141,1721561438879,-1103.7447891,0.00013698,2]
[332831142,1721561438888,-500.0,0.00013698,2]
[332831143,1721561438898,-1103.7447891,0.00013698,2]
[332831144,1721561438908,-348.31714579,0.00013698,2]
[332831145,1721561438917,-1103.7447891,0.00013698,2]
[332831146,1721561438927,-216.9650229,0.00013698,2]
[332831147,1721561438936,-1103.7447891,0.00013698,2]
[332831148,1721561438946,-1103.7447891,0.00013698,2]
[332831149,1721561438956,-1103.7447891,0.00013698,2]
[332831150,1721561438965,-646.91884886,0.00013698,2]
[332831151,1721561438974,-1103.7447891,0.00013698,2]
[332831152,1721561438984,-500.0,0.00013698,2]
[332831153,1721561438993,-1103.7447891,0.00013698,2]
[332831154,1721561439003,-500.0,0.00013698,2]
[332831155,1721561439012,-1103.7447891,0.00013698,2]
[332831156,1721561439021,-1103.7447891,0.00013698,2]
[332831157,1721561439030,-1103.7447891,0.00013698,2]
[332831158,1721561439040,-500.0,0.00013698,2]
[332831159,1721561439049,-1103.7447891,0.00013698,2]
[332831160,1721561439059,-455.87398497,0.00013698,2]
[332831161,1721561439068,-1103.7447891,0.00013698,2]
[332831162,1721561439076,-500.0,0.00013698,2]
[332831163,1721561439086,-500.0,0.00013698,2]
[332831164,1721561439096,-500.0,0.00013698,2]
[332831165,1721561439108,-1103.7447891,0.00013698,2]
[332831166,1721561439117,-500.0,0.00013698,2]
[332831167,1721561439127,-1103.7447891,0.00013698,2]
[332831168,1721561439137,-1103.7447891,0.00013698,2]
[332831169,1721561439147,-500.0,0.00013698,2]
[332831170,1721561439157,-1103.7447891,0.00013698,2]
[332831171,1721561439167,-1103.7447891,0.00013698,2]
[332831172,1721561439176,-1103.7447891,0.00013698,2]
[332831173,1721561439186,-1103.7447891,0.00013698,2]
[332831174,1721561439195,-1300.50177559,0.00013698,2]
[332831175,1721561439206,-1300.50177559,0.00013698,2]
[332831176,1721561439215,-1300.50177559,0.00013698,2]
[332831177,1721561439225,-1300.50177559,0.00013698,2]
[332831178,1721561439234,-1300.50177559,0.00013698,2]
[332831179,1721561439243,-1300.50177559,0.00013698,2]
[332831180,1721561439253,-500.0,0.00013698,2]
[332831181,1721561439262,-500.0,0.00013698,2]
[332831182,1721561439271,-500.0,0.00013698,2]
[332831183,1721561439280,-500.0,0.00013698,2]
[332831184,1721561439290,-651.19582834,0.00013698,2]
[332831185,1721561439299,-500.0,0.00013698,2]
[332831186,1721561439309,-500.0,0.00013698,2]
[332831187,1721561439318,-500.0,0.00013698,2]
[332831188,1721561439328,-621.05,0.00013698,2]
[332831189,1721561439337,-514.47,0.00013698,2]
[332831190,1721561439347,-616.29,0.00013698,2]
[332831191,1721561439357,-500.0,0.00013698,2]
[332831192,1721561439560,-500.0,0.00013698,2]
[332831193,1721561439570,-500.0,0.00013698,2]
[332831194,1721561439579,-500.0,0.00013698,2]
[332831195,1721561439588,-618.94,0.00013698,2]
[332831196,1721561439597,-500.0,0.00013698,2]
[332831197,1721561439606,-530.0,0.00013698,2]
[332831198,1721561439616,-506.89742752,0.00013698,2]
[332831199,1721561439626,-500.0,0.00013698,2]
[332831200,1721561439635,-500.0,0.00013698,2]
[332831201,1721561439645,-737.92,0.00013698,2]
[332831202,1721561439655,-500.0,0.00013698,2]
[332831203,1721561439665,-502.62244927,0.00013698,2]
[332831204,1721561439674,-501.72351457,0.00013698,2]
[332831205,1721561439684,-500.0,0.00013698,2]
[332831206,1721561439694,-500.0,0.00013698,2]
[332831207,1721561439703,-500.0,0.00013698,2]
[332831208,1721561439713,-398.13892911,0.00013698,2]
[332831209,1721561439723,-501.90667774,0.00013698,2]
[332831210,1721561439735,-500.0,0.00013698,2]
[332831211,1721561439744,-500.0,0.00013698,2]
[332831212,1721561439754,-500.0,0.00013698,2]
[332831213,1721561439764,-500.0,0.00013698,2]
[332831214,1721561439774,-582.12759626,0.00013698,2]
[332831215,1721561439784,-502.81565659,0.00013698,2]
[332831216,1721561439795,-500.0,0.00013698,2]
[332831217,1721561439805,-500.0,0.00013698,2]
[332831218,1721561439815,-500.0,0.00013698,2]
[332831219,1721561439827,-500.0,0.00013698,2]
[332831220,1721561439837,-500.0,0.00013698,2]
[332831221,1721561439847,-502.81409546,0.00013698,2]
[332831222,1721561439857,-500.0,0.00013698,2]
[332831223,1721561439867,-500.0,0.00013698,2]
[332831224,1721561439877,-500.0,0.00013698,2]
[332831225,1721561439887,-500.0,0.00013698,2]
[332831226,1721561439898,-500.0,0.00013698,2]
[332831227,1721561439912,-500.0,0.00013698,2]
[332831228,1721561439922,-500.0,0.00013698,2]
[332831229,1721561439932,-177.03307554,0.00013698,2]
[332831230,1721561439941,-500.0,0.00013698,2]
[332831231,1721561439951,-500.0,0.00013698,2]
[332831232,1721561439962,-500.0,0.00013698,2]
[332831233,1721561439971,-150.0,0.00013698,2]
[332831236,1721561439981,-323.02370745,0.00013698,2]
[332831237,1721561439991,-500.0,0.00013698,2]
[332831238,1721561440001,-500.0,0.00013698,2]
[332831239,1721561440011,-500.0,0.00013698,2]
[332831240,1721561440021,-500.0,0.00013698,2]
[332831241,1721561440031,-500.0,0.00013698,2]
[332831242,1721561440040,-500.0,0.00013698,2]
[332831243,1721561440049,-500.0,0.00013698,2]
[332831244,1721561440059,-506.8348777,0.00013698,2]
[332831246,1721561440069,-643.77653392,0.00013698,2]
[332831247,1721561440079,-500.0,0.00013698,2]
[332831248,1721561440088,-500.98459521,0.00013698,2]
[332831249,1721561440098,-500.0,0.00013698,2]
[332831250,1721561440108,-502.53453976,0.00013698,2]
[332831251,1721561440117,-500.0,0.00013698,2]
[332831252,1721561440127,-522.48342793,0.00013698,2]
[332831253,1721561440136,-636.95954295,0.00013698,2]
[332831254,1721561440145,-501.05158394,0.00013698,2]
[332831255,1721561440158,-309.18495205,0.00013698,2]
[332831256,1721561440167,-500.0,0.00013698,2]
[332831257,1721561440177,-500.0,0.00013698,2]
[332831258,1721561440186,-500.0,0.00013698,2]
[332831259,1721561440196,-502.75085437,0.00013698,2]
[332831260,1721561440205,-273.53253815,0.00013698,2]
[332831261,1721561440215,-500.0,0.00013698,2]
[332831262,1721561440225,-501.12390469,0.00013698,2]
[332831263,1721561440235,-500.0,0.00013698,2]
[332831264,1721561440245,-500.0,0.00013698,2]
[332831265,1721561440255,-1270.47,0.00013698,2]
[332831266,1721561440264,-501.19667291,0.00013698,2]
[332831267,1721561440275,-500.0,0.00013698,2]
[332831268,1721561440284,-500.0,0.00013698,2]
[332831269,1721561440294,-500.0,0.00013698,2]
[332831270,1721561440304,-817.71,0.00013698,2]
[332831271,1721561440313,-500.0,0.00013698,2]
[332831272,1721561440323,-500.0,0.00013698,2]
[332831273,1721561440333,-500.0,0.00013698,2]
[332831274,1721561440342,-500.0,0.00013698,2]
[332831275,1721561440352,-500.0,0.00013698,2]
[332831277,1721561440362,-500.0,0.00013698,2]
[332831279,1721561440371,-277.30974389,0.00013698,2]
[332831281,1721561440380,-540.5,0.00013698,2]
[332831282,1721561440389,-500.0,0.00013698,2]
[332831284,1721561440399,-501.53988826,0.00013698,2]
[332831286,1721561440411,-500.0,0.00013698,2]
[332831287,1721561440421,-259.96589553,0.00013698,2]
[332831288,1721561440431,-500.0,0.00013698,2]
[332831289,1721561440441,-500.0,0.00013698,2]
[332831290,1721561440451,-500.0,0.00013698,2]
[332831291,1721561440461,-500.0,0.00013698,2]
[332831292,1721561440471,-511.30177328,0.00013698,2]
[332831293,1721561440482,-500.0,0.00013698,2]
[332831294,1721561440492,-500.0,0.00013698,2]
[332831295,1721561440502,-500.0,0.00013698,2]
[332831296,1721561440511,-500.0,0.00013698,2]
[332831297,1721561440521,-500.0,0.00013698,2]
[332831298,1721561440531,-151.0,0.00013698,2]
[332831299,1721561440540,-500.0,0.00013698,2]
[332831300,1721561440550,-500.0,0.00013698,2]
[332831301,1721561440559,-506.67046312,0.00013698,2]
[332831302,1721561440568,-500.0,0.00013698,2]
[332831303,1721561440579,-1553.48,0.00013698,2]
[332831304,1721561440589,-500.0,0.00013698,2]
[332831305,1721561440598,-500.0,0.00013698,2]
[332831306,1721561440609,-1063.4,0.00013698,2]
[332831307,1721561440618,-500.0,0.00013698,2]
[332831308,1721561440628,-1316.55,0.00013698,2]
[332831309,1721561440639,-500.0,0.00013698,2]
[332831310,1721561440648,-151.0,0.00013698,2]
[332831311,1721561440661,-500.0,0.00013698,2]
[332831312,1721561440671,-502.05371275,0.00013698,2]
[332831313,1721561440681,-505.04722869,0.00013698,2]
[332831314,1721561440690,-502.20136358,0.00013698,2]
[332831315,1721561440699,-500.0,0.00013698,2]
[332831316,1721561440710,-500.0,0.00013698,2]
[332831317,1721561440719,-1084.55,0.00013698,2]
[332831318,1721561440728,-500.0,0.00013698,2]
[332831319,1721561440737,-500.0,0.00013698,2]
[332831320,1721561440747,-312.19033922,0.00013698,2]
[332831324,1721561442916,-273.37336231,9.9e-05,2]
[332831327,1721561442927,-187.80966078,0.00013698,2]
[332831332,1721561442939,-603.23,0.00013698,2]
[332831337,1721561442949,-383.64464745,0.00013698,2]
[332831340,1721561442959,-500.0,0.00013698,2]
[332831343,1721561442969,-500.0,0.00013698,2]
[332831346,1721561442979,-500.0,0.00013698,2]
[332831349,1721561442988,-500.0,0.00013698,2]
[332831351,1721561442998,-500.0,0.00013698,2]
[332831354,1721561443007,-506.48670125,0.00013698,2]
[332831356,1721561443017,-515.01040945,0.00013698,2]
[332831358,1721561443027,-963.82,0.00013698,2]
[332831361,1721561443037,-500.0,0.00013698,2]
[332831363,1721561443046,-500.0,0.00013698,2]
[332831366,1721561443056,-512.57009351,0.00013698,2]
[332831369,1721561443066,-846.85,0.00013698,2]
[332831371,1721561443075,-506.68,0.00013698,2]
[332831373,1721561443085,-500.0,0.00013698,2]
[332831374,1721561443094,-500.0,0.00013698,2]
[332831376,1721561443104,-626.49,0.00013698,2]
[332831378,1721561443114,-500.0,0.00013698,2]
[332831379,1721561443124,-500.0,0.00013698,2]
[332831380,1721561443135,-151.0,0.00013698,2]
[332831381,1721561443147,-500.0,0.00013698,2]
[332831382,1721561443158,-310.08212912,0.00013698,2]
[332831383,1721561443169,-500.0,0.00013698,2]
[332831384,1721561443179,-500.0,0.00013698,2]
[332831385,1721561443190,-500.0,0.00013698,2]
[332831386,1721561443201,-500.0,0.00013698,2]
[332831387,1721561443212,-1473.72,0.00013698,2]
[332831388,1721561443222,-500.0,0.00013698,2]
[332831389,1721561443233,-500.0,0.00013698,2]
[332831390,1721561443243,-500.0,0.00013698,2]
[332831391,1721561443255,-500.0,0.00013698,2]
[332831392,1721561443266,-517.10630346,0.00013698,2]
[332831393,1721561443278,-500.0,0.00013698,2]
[332831394,1721561443287,-500.0,0.00013698,2]
[332831395,1721561443297,-500.0,0.00013698,2]
[332831396,1721561443307,-500.0,0.00013698,2]